[Event "4th Batumi Cup 2018"]
[Site "Batumi"]
[Date "2018.07.09"]
[Round "8"]
[White "Sanchez, Louis"]
[Black "Garayev, Kanan"]
[Result "0-1"]
[ECO "A05"]
[WhiteElo "2290"]
[BlackElo "2300"]
[Annotator "NA"]
[PlyCount "75"]
[EventDate "2018.07.03"]
[EventType "swiss"]
[EventCountry "GEO"]
[SourceTitle "playchess.com"]
[Source "ChessBase"]
[SourceQuality "1"]
[TimeControl "40/5400+30:1800+30"]

1. Nf3 {[%emt 0:00:00]} Nf6 {[%emt 0:00:00]} 2. g3 {[%emt 0:00:00]} b5 {[%emt 0:00:00]} 3. Na3 {[%emt 0:01:23]} a6 {[%emt 0:02:50]} 4. c4 {[%emt 0:00:29]} b4 {[%emt 0:02:21]} 5. Nc2 {[%emt 0:00:14]} c5 {[%emt 0:01:15]} 6. a3 {[%emt 0:07:19]} bxa3 {[%emt 0:01:54]} 7. b3 {[%emt 0:05:17]} Nc6 {[%emt 0:09:36]} 8. Bg2 {[%emt 0:06:34]} Rb8 {[%emt 0:02:33]} 9. Rxa3 {[%emt 0:26:06]} e6 {[%emt 0:13:12]} 10. Bb2 {[%emt 0:05:55]} Be7 {[%emt 0:01:16]} 11. Qa1 {[%emt 0:03:11]} O-O {[%emt 0:12:57]} 12. Ne5 {[%emt 0:02:47]} Nxe5 {[%emt 0:07:18]} 13. Bxe5 {[%emt 0:00:15]} d6 {[%emt 0:00:05]} 14. Bc3 {[%emt 0:00:14]} d5 {[%emt 0:01:06]} 15. Be5 {[%emt 0:02:41]} Rb6 {[%emt 0:00:39]} 16. d3 {[%emt 0:04:27]} d4 {[%emt 0:02:27]} 17. Bf4 {[%emt 0:04:19]} Bd6 {[%emt 0:01:51]} 18. Bd2 {[%emt 0:00:30]} Qe7 {[%emt 0:00:37]} 19. O-O {[%emt 0:04:37]} e5 {[%emt 0:00:48]} 20. e4 {[%emt 0:07:03]} Ne8 {[%emt 0:01:30]} 21. Qd1 {[%emt 0:08:06]} f5 {[%emt 0:02:07]} 22. Bh3 {[%emt 0:03:49]} Qb7 {[%emt 0:02:59]} 23. exf5 {[%emt 0:02:15]} Bxf5 {[%emt 0:00:34]} 24. Bxf5 {[%emt 0:00:13]} Rxf5 {[%emt 0:00:01]} 25. Ne1 {[%emt 0:00:25]} Bb8 {[%emt 0:06:19]} 26. f3 {[%emt 0:02:52]} Rf8 {[%emt 0:02:27]} 27. Rf2 {[%emt 0:01:08]} Rbf6 {[%emt 0:01:37]} 28. Qe2 {[%emt 0:00:19]} Nd6 {[%emt 0:00:21]} 29. g4 {[%emt 0:01:17]} e4 {[%emt 0:00:52]} 30. dxe4 {[%emt 0:00:31]} Nxe4 {[%emt 0:00:12]} 31. Rg2 {[%emt 0:00:30]} Nxd2 {[%emt 0:00:29]} 32. Qxd2 {[%emt 0:00:02]} Bf4 {[%emt 0:02:05]} 33. Qd1 {[%emt 0:00:10]} Re6 {[%emt 0:02:55]} 34. Raa2 {[%emt 0:01:09]} Re3 {[%emt 0:02:12]} 35. Rab2 {[%emt 0:00:01]} Rc3 {[%emt 0:07:33]} 36. Rgc2 {[%emt 0:00:54]} Rxb3 {[%emt 0:01:02]} 37. Nd3 {[%emt 0:00:42]} Be3+ {[%emt 0:00:07]} 38. Rf2 {[%emt 0:01:16]} 0-1

[Event "4th Batumi Cup 2018"]
[Site "Batumi"]
[Date "2018.07.09"]
[Round "8"]
[White "Akhvlediani, Irakli"]
[Black "Martynov, Roman"]
[Result "1-0"]
[ECO "E06"]
[WhiteElo "2264"]
[BlackElo "2366"]
[Annotator "NA"]
[PlyCount "85"]
[EventDate "2018.07.03"]
[EventType "swiss"]
[EventCountry "GEO"]
[SourceTitle "playchess.com"]
[Source "ChessBase"]
[SourceQuality "1"]
[TimeControl "40/5400+30:1800+30"]

1. d4 {[%emt 0:00:00] Ftacnik,L} Nf6 {[%emt 0:00:00]} 2. c4 {[%emt 0:00:00]} e6 {[%emt 0:00:20]} 3. Nf3 {[%emt 0:00:05]} b6 {[%emt 0:03:27]} 4. g3 {[%emt 0:00:40]} Bb7 {[%emt 0:00:36]} 5. Bg2 {[%emt 0:00:11]} Bb4+ {[%emt 0:00:26]} 6. Bd2 {[%emt 0:01:26]} Be7 {[%emt 0:01:24]} 7. O-O {[%emt 0:00:09]} c6 {[%emt 0:06:06]} 8. Qc2 {[%emt 0:02:00]} d5 {[%emt 0:03:23]} 9. Bf4 {[%emt 0:01:17]} O-O {[%emt 0:02:34]} 10. Rd1 {[%emt 0:00:09]} Na6 {[%emt 0:07:38]} 11. b3 {[%emt 0:10:23] E06: Closed Catalan: Early deviations} c5 {[%emt 0:11:56]} 12. Nc3 {[%emt 0:03:47]} Qc8 {[%emt 0:10:26]} 13. cxd5 {[%emt 0:16:01] [#]} Nb4 $146 {[%emt 0:06:52]} ({Predecessor:} 13... exd5 14. Rac1 Rd8 15. Qb1 h6 16. Ne5 Qe6 17. Be3 cxd4 18. Bxd4 Ba3 19. Rc2 Bc5 20. Bxc5 Nxc5 21. Nf3 Nfe4 {1-0 (44) Tkachiev,V (2642)-Sokolov,I (2659) Shanghai 2001 CBM 085 [Ftacnik,L]}) 14. Qd2 {[%emt 0:02:03]} Nbxd5 {[%emt 0:01:35]} 15. Nxd5 {[%emt 0:00:16]} Bxd5 {[%emt 0:00:40]} 16. dxc5 {[%emt 0:05:32]} Bxc5 {[%emt 0:02:21]} 17. Qb2 {[%emt 0:01:59]} Ng4 {[%emt 0:11:23]} 18. e3 {[%emt 0:06:09]} Qb7 {[%emt 0:00:12]} 19. Ne1 {[%emt 0:03:27]} Bxg2 {[%emt 0:00:59]} 20. Nxg2 {[%emt 0:00:03]} Rfd8 {[%emt 0:01:04]} 21. Qe2 {[%emt 0:08:36]} Nf6 {[%emt 0:01:01]} 22. Be5 {[%emt 0:01:05]} Ne4 {[%emt 0:06:41]} 23. Bb2 {[%emt 0:25:45]} Ng5 {[%emt 0:02:03]} 24. Qg4 {[%emt 0:02:52]} Nf3+ {[%emt 0:08:42]} 25. Kh1 {[%emt 0:00:04]} Bf8 {[%emt 0:00:06]} 26. h4 {[%emt 0:07:46]} Rac8 {[%emt 0:03:04]} 27. e4 {[%emt 0:01:12]} Nd2 {[%emt 0:00:35]} 28. Re1 {[%emt 0:00:30]} Rd3 {[%emt 0:01:06]} 29. h5 {[%emt 0:00:16]} h6 $17 {[%emt 0:00:49]} 30. Qe2 {[%emt 0:00:37]} Rcd8 {[%emt 0:02:10]} 31. Rad1 {[%emt 0:00:11]} f5 {[%emt 0:04:57]} 32. exf5 {[%emt 0:00:32]} exf5 {[%emt 0:00:09]} 33. Qe6+ {[%emt 0:00:10]} Qf7 {[%emt 0:00:26]} 34. Qxf7+ {[%emt 0:01:03]} Kxf7 {[%emt 0:00:02]} 35. Nf4 {[%emt 0:00:05]} R3d7 {[%emt 0:01:34]} 36. Ng6 {[%emt 0:00:37]} Kg8 {[%emt 0:00:31]} 37. Re5 {[%emt 0:00:38]} Ne4 {[%emt 0:00:35]} 38. Rxd7 {[%emt 0:00:15]} Rxd7 {[%emt 0:00:02]} 39. Re8 {[%emt 0:00:51]} Rf7 {[%emt 0:00:43]} 40. Ba3 {[%emt 0:00:00]} Nc5 {[%emt 0:00:00]} 41. Kg2 {[%emt 0:04:39]} Nd7 {[%emt 0:01:19]} 42. Kf3 {[%emt 0:01:40]} Rf6 {[%emt 0:00:08]} 43. Nxf8 {[%emt 0:00:52]} 1-0

[Event "4th Batumi Cup 2018"]
[Site "Batumi"]
[Date "2018.07.09"]
[Round "8"]
[White "Khomeriki, Nino"]
[Black "Pogosyan, Stefan"]
[Result "1-0"]
[ECO "E14"]
[WhiteElo "2257"]
[BlackElo "2356"]
[Annotator "NA"]
[PlyCount "95"]
[EventDate "2018.07.03"]
[EventType "swiss"]
[EventCountry "GEO"]
[SourceTitle "playchess.com"]
[Source "ChessBase"]
[SourceQuality "1"]
[TimeControl "40/5400+30:1800+30"]

1. d4 {[%emt 0:01:25]} Nf6 {[%emt 0:00:00]} 2. Nf3 {[%emt 0:00:10]} e6 {[%emt 0:00:00]} 3. e3 {[%emt 0:00:35]} c5 {[%emt 0:00:01]} 4. Bd3 {[%emt 0:00:07]} b6 {[%emt 0:00:31]} 5. O-O {[%emt 0:00:15]} Bb7 {[%emt 0:00:04]} 6. b3 {[%emt 0:00:05]} Be7 {[%emt 0:00:20]} 7. Bb2 {[%emt 1:30:53]} O-O {[%emt 0:00:25]} 8. c4 {[%emt 0:00:00]} cxd4 {[%emt 0:00:43]} 9. exd4 {[%emt 0:00:00]} d6 {[%emt 0:01:25]} 10. Nc3 {[%emt 0:00:00]} Nbd7 {[%emt 0:00:12]} 11. d5 {[%emt 0:00:00]} e5 {[%emt 0:02:39]} 12. Nd2 {[%emt 0:00:00] E14: Queen's Indian: Classical Variation (4 e3)} a6 {[%emt 0:02:41]} (12... g6 13. f4 exf4 14. Rxf4 Ne5 15. Be2 Nfd7 16. Rf1 a6 17. Kh1 Re8 18. Nde4 f5 19. Nf2 Nf6 20. Qd2 Bf8 21. Rae1 Bg7 22. a4 Bc8 23. Na2 {½-½ (23) Finegold,B (2493)-Sachdev,T (2431) Saint Louis 2016}) 13. a4 {[%emt 0:00:00]} g6 $146 {[%emt 0:02:27]} ({Predecessor:} 13... Nc5 14. Bc2 a5 15. f4 Nfd7 16. Nb5 exf4 17. Rxf4 Bf6 18. Qh5 g6 19. Bxf6 Nxf6 20. Qh6 Nh5 21. Nf3 f6 22. Rg4 Ng7 23. Rh4 Kf7 24. Rf1 Rb8 25. Bxg6+ {1-0 (25) Niklasson,C (2380)-Jansson,B (2380) Stockholm 1977}) 14. g3 {[%emt 0:00:00]} Nc5 {[%emt 0:08:11]} 15. Bc2 {[%emt 0:00:00]} Bc8 {[%emt 0:04:17]} 16. b4 {[%emt 0:00:00]} Nb7 {[%emt 0:00:38]} 17. Nb3 {[%emt 0:00:00]} Bh3 {[%emt 0:02:18]} 18. Re1 {[%emt 0:00:00]} a5 {[%emt 0:00:10]} 19. bxa5 {[%emt 0:00:00]} bxa5 {[%emt 0:01:59]} 20. Nb5 {[%emt 0:00:00]} Ng4 {[%emt 0:03:05]} 21. Be4 {[%emt 0:00:00]} Qb6 {[%emt 0:02:28]} (21... Nxf2 $5 22. Kxf2 Qb6+ 23. Ke2 f5 $11) 22. Qe2 {[%emt 0:00:00]} f5 {[%emt 0:06:01]} 23. Bg2 {[%emt 0:00:00]} Bxg2 {[%emt 0:06:43]} 24. Kxg2 {[%emt 0:00:00]} h5 {[%emt 0:02:19] [#]} 25. f3 {[%emt 0:00:00]} ({White should try} 25. Bd4 $1 $18 {[%cal Rd4b6][%mdl 512]} Qd8 (25... exd4 26. Qxe7) 26. f3) 25... Nf6 {[%emt 0:01:00]} 26. f4 {[%emt 0:00:00]} (26. N3d4 $16) 26... Rae8 {[%emt 0:01:14]} 27. Qe3 {[%emt 0:00:00]} Qxe3 {[%emt 0:08:56]} 28. Rxe3 {[%emt 0:00:00]} Ne4 {[%emt 0:03:11]} 29. fxe5 {[%emt 0:00:00]} Bg5 {[%emt 0:00:38]} 30. Re2 {[%emt 0:00:00]} dxe5 {[%emt 0:00:24]} 31. Nc7 {[%emt 0:00:00]} Rc8 {[%emt 0:00:58]} 32. Ne6 {[%emt 0:00:00]} Rfe8 {[%emt 0:00:06]} 33. c5 {[%emt 0:00:00]} ({Much less strong is} 33. Bxe5 Rxc4 34. Raa2 Be7 $11) 33... Rxe6 {[%emt 0:03:48]} 34. dxe6 {[%emt 0:00:00]} Nbxc5 {[%emt 0:00:10]} 35. Nxc5 {[%emt 0:00:01]} Rxc5 {[%emt 0:00:01]} 36. Rd1 {[%emt 0:01:41]} Kg7 {[%emt 0:04:56]} 37. Rd7+ {[%emt 0:04:25]} (37. h4 $142 Be7 38. Rd7) 37... Kf6 {[%emt 0:00:16]} 38. e7 {[%emt 0:00:09]} Kf7 {[%emt 0:00:06] [#]} 39. Ra7 $1 {[%emt 0:01:08]} Bd2 {[%emt 0:03:41]} 40. Rxd2 {[%emt 0:00:00]} Nxd2 {[%emt 0:00:00]} 41. Ra8 {[%emt 0:03:21]} Kxe7 {[%emt 0:01:15]} 42. Ba3 {[%emt 0:00:04]} Nb3 {[%emt 0:04:35]} 43. Bxc5+ {[%emt 0:00:43]} Nxc5 {[%emt 0:00:07]} 44. Rxa5 {[%emt 0:00:02]} Kd6 {[%emt 0:00:55]} 45. Ra8 {[%emt 0:00:10]} g5 $18 {[%emt 0:04:11]} 46. a5 {[%emt 0:00:45]} Kc6 {[%emt 0:02:23]} 47. a6 {[%emt 0:00:25]} Ne4 {[%emt 0:02:35]} 48. Rb8 {[%emt 0:00:14]} 1-0

[Event "4th Batumi Cup 2018"]
[Site "Batumi"]
[Date "2018.07.09"]
[Round "8"]
[White "Primbetov, Kazbek"]
[Black "Bashirov, Teymur"]
[Result "1/2-1/2"]
[ECO "C48"]
[WhiteElo "2257"]
[BlackElo "2379"]
[Annotator "NA"]
[PlyCount "64"]
[EventDate "2018.07.03"]
[EventType "swiss"]
[EventCountry "GEO"]
[SourceTitle "playchess.com"]
[Source "ChessBase"]
[SourceQuality "1"]
[TimeControl "40/5400+30:1800+30"]

1. e4 {[%emt 0:00:00]} e5 {[%emt 0:11:44]} 2. Nf3 {[%emt 0:01:47]} Nf6 {[%emt 0:00:06]} 3. Nc3 {[%emt 0:00:27]} Nc6 {[%emt 0:00:07]} 4. Bb5 {[%emt 0:00:05]} Bc5 {[%emt 0:00:27]} 5. Nxe5 {[%emt 0:04:23]} Nxe5 {[%emt 0:00:11]} 6. d4 {[%emt 0:00:04]} Bd6 {[%emt 0:00:12]} 7. f4 {[%emt 0:01:19]} Neg4 {[%emt 0:00:06] C48: Four Knights: 4 Bb5, replies other than 4...Bb4} 8. e5 {[%emt 0:00:23]} Bb4 {[%emt 0:00:06]} 9. O-O {[%emt 0:03:20]} O-O {[%emt 0:01:36]} 10. a3 {[%emt 0:07:51]} Bxc3 {[%emt 0:08:32]} 11. bxc3 {[%emt 0:00:20]} d5 {[%emt 0:00:27]} 12. f5 {[%emt 0:08:06]} c6 {[%emt 0:06:36]} 13. Bd3 {[%emt 0:05:23]} Qa5 {[%emt 0:05:29]} 14. Bd2 {[%emt 0:03:29]} Re8 {[%emt 0:03:09] [#]} 15. exf6 $146 {[%emt 0:22:38]} ({Predecessor:} 15. Qf3 Ne4 16. Qxg4 Nxd2 {½-½ (41) Evtushenko,S (2542)-Romm,M (2445) ICCF email 2014}) 15... Nxf6 {[%emt 0:00:03]} 16. g4 {[%emt 0:00:11]} h6 {[%emt 0:12:45]} 17. h4 {[%emt 0:03:26]} Ne4 {[%emt 0:04:47]} 18. g5 {[%emt 0:00:11]} hxg5 {[%emt 0:00:43]} 19. hxg5 {[%emt 0:00:04]} g6 {[%emt 0:04:02]} 20. f6 {[%emt 0:03:16]} c5 {[%emt 0:10:34]} 21. Kg2 {[%emt 0:03:53]} cxd4 {[%emt 0:12:27] [#]} 22. Rh1 $2 {[%emt 0:01:48]} ({Avoid the trap} 22. Bxe4 $2 Rxe4 23. Bf4 Bf5 $19) ({White has to play} 22. Rf4 $1 $16 Nxd2 23. Qxd2 Qxc3 24. Qxc3 dxc3 25. Rh1) 22... Qc7 {[%emt 0:00:12] [#]} 23. Qf3 $2 {[%emt 0:19:14]} (23. Rh8+ $3 $11 {[%mdl 512]} Kxh8 24. Qh1+ Kg8 25. Bxe4) 23... Nxd2 {[%emt 0:12:40]} 24. Qf2 {[%emt 0:02:30]} Bg4 {[%emt 0:00:48]} 25. Rh6 {[%emt 0:04:38]} Bh5 {[%emt 0:01:53]} 26. Rh1 {[%emt 0:01:08]} Re3 {[%emt 0:00:56]} ({Inferior is} 26... dxc3 27. R1xh5 Qg3+ 28. Qxg3 Re2+ 29. Bxe2 gxh5 30. g6 Re8 {[#]} 31. Qb8 $1 {[%mdl 512]} Rxb8 32. g7 Re8 33. Rh8#) (26... Re4 $11 27. Bxe4 Nxe4 28. R1xh5 gxh5) 27. R1xh5 {[%emt 0:00:42]} gxh5 {[%emt 0:00:17]} 28. g6 {[%emt 0:01:05]} Qe5 {[%emt 0:01:49]} 29. gxf7+ {[%emt 0:01:04]} Kxf7 {[%emt 0:00:13]} 30. Rh7+ {[%emt 0:00:54]} Kf8 $11 {[%emt 0:00:17]} ({Much less strong is} 30... Kg8 31. Rg7+ Kf8 32. cxd4 $19) (30... Ke6 $19 31. Re7+ Kd6 32. Rxe5 Rg8+ 33. Kh2 Nf3+ 34. Qxf3 Rxf3 35. cxd4 Rxf6 36. Rxh5 Rf4 37. Rh6+ Kc7 38. Rh7+ Kb6 39. Rh6+ Ka5) 31. Rh8+ {[%emt 0:00:42]} Kf7 {[%emt 0:00:00]} 32. Rh7+ {[%emt 0:00:32]} Kf8 {[%emt 0:00:05]} 1/2-1/2

[Event "4th Batumi Cup 2018"]
[Site "Batumi"]
[Date "2018.07.09"]
[Round "8"]
[White "Martynyuk, Elizaveta"]
[Black "Stepanyan, Eva"]
[Result "0-1"]
[ECO "B13"]
[WhiteElo "2182"]
[BlackElo "2096"]
[Annotator "NA"]
[PlyCount "63"]
[EventDate "2018.07.03"]
[EventType "swiss"]
[EventCountry "GEO"]
[SourceTitle "playchess.com"]
[Source "ChessBase"]
[SourceQuality "1"]
[TimeControl "40/5400+30:1800+30"]

1. e4 {[%emt 0:00:00]} c6 {[%emt 0:00:00]} 2. Nc3 {[%emt 0:00:00]} d5 {[%emt 0:00:00]} 3. Nf3 {[%emt 0:00:00]} Nf6 {[%emt 0:00:00]} 4. exd5 {[%emt 0:00:09]} cxd5 {[%emt 0:00:32]} 5. d4 {[%emt 0:00:05]} Nc6 {[%emt 0:01:30]} 6. h3 {[%emt 0:03:14] B13: Caro-Kann: Exchange Variation and Panov-Botvinnik Attack} (6. Bf4 Bf5 {½-½ (6) Sumets,A (2579)-Savchenko,S (2508) Tipaza 2011}) 6... Bf5 {[%emt 0:01:58]} 7. Bd3 {[%emt 0:00:36]} Bxd3 {[%emt 0:01:32]} 8. Qxd3 {[%emt 0:00:08]} e6 {[%emt 0:00:49]} 9. O-O {[%emt 0:00:09]} Bd6 {[%emt 0:00:58]} 10. Bg5 {[%emt 0:01:04]} h6 {[%emt 0:01:24]} 11. Bh4 {[%emt 0:00:09]} O-O $146 {[%emt 0:13:41]} ({Predecessor:} 11... g5 12. Bg3 Bxg3 13. fxg3 Nh5 {1-0 (23) Ortiz Rodriguez,S-Palomares,D Neiva 2011}) 12. Rae1 {[%emt 0:08:34]} Be7 {[%emt 0:01:48]} 13. Ne5 {[%emt 0:03:11]} Nd7 {[%emt 0:03:57]} 14. Nxc6 {[%emt 0:01:25]} bxc6 {[%emt 0:00:06]} 15. Bxe7 {[%emt 0:00:24]} Qxe7 {[%emt 0:00:06]} 16. f4 {[%emt 0:00:28]} Qb4 {[%emt 0:01:27]} 17. Kh1 {[%emt 0:03:01]} c5 {[%emt 0:04:29]} 18. dxc5 {[%emt 0:01:50]} Nxc5 {[%emt 0:00:05]} 19. Qg3 $17 {[%emt 0:02:26]} Qxb2 {[%emt 0:02:53]} 20. f5 {[%emt 0:01:13]} Qxc2 {[%emt 0:10:08]} 21. Rf4 {[%emt 0:00:22]} Nd3 {[%emt 0:02:19]} 22. f6 {[%emt 0:02:49]} g6 {[%emt 0:00:14]} 23. Rh4 {[%emt 0:00:37]} Nxe1 {[%emt 0:01:57]} 24. Qxe1 {[%emt 0:00:42]} Rfc8 {[%emt 0:02:23]} 25. Ne2 {[%emt 0:02:21]} Rab8 {[%emt 0:00:55]} 26. Qf2 {[%emt 0:01:14]} Rb1+ {[%emt 0:00:40]} 27. Kh2 {[%emt 0:00:04]} Qd2 {[%emt 0:04:25]} 28. Qf3 {[%emt 0:01:11]} Qg5 {[%emt 0:01:09]} 29. Rg4 {[%emt 0:00:33]} Qe5+ {[%emt 0:00:10]} 30. Rf4 {[%emt 0:02:01]} Rc4 {[%emt 0:00:56]} 31. Qg4 {[%emt 0:02:37]} Rxf4 {[%emt 0:00:19]} 32. Nxf4 {[%emt 0:00:04]} 0-1

[Event "4th Batumi Cup 2018"]
[Site "Batumi"]
[Date "2018.07.09"]
[Round "8"]
[White "Eynullayev, Altay"]
[Black "Mammadova, Narmin"]
[Result "0-1"]
[ECO "B12"]
[WhiteElo "2134"]
[BlackElo "2209"]
[Annotator "NA"]
[PlyCount "108"]
[EventDate "2018.07.03"]
[EventType "swiss"]
[EventCountry "GEO"]
[SourceTitle "playchess.com"]
[Source "ChessBase"]
[SourceQuality "1"]
[TimeControl "40/5400+30:1800+30"]

1. e4 {[%emt 0:00:00]} c6 {[%emt 0:00:35]} 2. d4 {[%emt 0:00:00]} d5 {[%emt 0:00:09]} 3. f3 {[%emt 0:00:00]} e6 {[%emt 0:00:50]} 4. Nc3 {[%emt 0:00:00]} Bb4 {[%emt 0:05:17]} 5. Bf4 {[%emt 0:00:10]} Nf6 {[%emt 0:01:09] B12: Caro-Kann (Vorstoß-Variante)} (5... Ne7 6. Qd3 b6 7. Nge2 Ba6 8. Qe3 Nd7 9. a3 Bxc3+ 10. Nxc3 Bxf1 11. Rxf1 O-O 12. Kf2 dxe4 13. fxe4 {½-½ (54) Kuzmicz,K (2460)-Rodshtein,M (2699) Katowice 2017}) 6. Qd3 {[%emt 0:00:27]} O-O {[%emt 0:01:05]} 7. Nge2 {[%emt 0:01:11]} b6 {[%emt 0:01:42]} 8. O-O-O {[%emt 0:00:17]} a5 {[%emt 0:02:51]} 9. h4 {[%emt 0:07:41]} a4 $146 {[%emt 0:11:53]} ({Vorgänger:} 9... b5 10. h5 Be7 11. g4 Nfd7 12. Qe3 Nb6 13. g5 b4 14. Nb1 Nc4 {0-1 (33) Saunina,L (2282)-Ushenina,A (2347) St Petersburg 2004}) 10. h5 {[%emt 0:05:16]} Be7 {[%emt 0:10:58]} 11. g4 {[%emt 0:04:23]} Nfd7 {[%emt 0:02:38]} 12. g5 {[%emt 0:17:00]} (12. exd5 $14 cxd5 13. a3) 12... Bxg5 {[%emt 0:05:44]} 13. Bxg5 {[%emt 0:00:44]} Qxg5+ {[%emt 0:00:03]} 14. f4 {[%emt 0:02:17]} Qh6 {[%emt 0:02:54]} 15. Bh3 {[%emt 0:05:32]} Ba6 {[%emt 0:04:54]} 16. Qf3 {[%emt 0:01:39]} dxe4 {[%emt 0:03:27]} 17. Qxe4 {[%emt 0:05:27]} Nf6 {[%emt 0:02:11]} 18. Qe3 {[%emt 0:04:09]} Nd5 {[%emt 0:13:19]} 19. Qf3 {[%emt 0:01:30]} Nd7 {[%emt 0:03:24]} 20. Rhg1 {[%emt 0:02:37]} f5 {[%emt 0:06:27]} 21. Rg5 {[%emt 0:03:03]} Qf6 {[%emt 0:06:10]} 22. Ng3 {[%emt 0:05:06]} (22. Nxd5 $15 cxd5 23. a3) 22... Bc4 {[%emt 0:04:18]} 23. h6 {[%emt 0:10:01] [#]} g6 $1 {[%emt 0:02:02]} ({Not} 23... Qxh6 24. Rh1 $11) 24. Kb1 {[%emt 0:03:51]} Kh8 {[%emt 0:00:57]} 25. Nce2 $2 {[%emt 0:00:44]} (25. Nxd5 Bxd5 26. Qe3) 25... Bxe2 {[%emt 0:01:14]} 26. Nxe2 {[%emt 0:00:27]} b5 {[%emt 0:00:08]} 27. Bf1 {[%emt 0:01:29]} Qe7 {[%emt 0:00:47]} 28. Nc1 {[%emt 0:00:36]} Qd6 {[%emt 0:01:36]} 29. Nd3 {[%emt 0:01:43]} a3 {[%emt 0:00:22]} 30. Ne5 {[%emt 0:00:40]} Nxe5 {[%emt 0:01:06]} 31. fxe5 {[%emt 0:00:20]} Qb4 {[%emt 0:01:19]} 32. Qb3 {[%emt 0:00:12]} Qe7 {[%emt 0:00:39]} 33. Rg3 {[%emt 0:00:16]} axb2 {[%emt 0:00:28]} 34. Bg2 {[%emt 0:01:14]} b4 {[%emt 0:00:28]} 35. Bxd5 {[%emt 0:00:19]} Ra3 $19 {[%emt 0:01:48]} (35... exd5 $2 36. Qxb2 Ra4 37. Rb3 $19) 36. Qxb2 {[%emt 0:00:05]} Rxg3 {[%emt 0:00:13]} 37. Bxc6 {[%emt 0:00:02]} Rc3 {[%emt 0:00:19]} 38. d5 {[%emt 0:00:52]} exd5 {[%emt 0:00:37]} 39. Bxd5 {[%emt 0:00:06]} Qxe5 {[%emt 0:01:02]} 40. Qxb4 {[%emt 0:00:00]} Rb8 {[%emt 0:00:00]} 41. Bb3 {[%emt 0:00:16]} Rcc8 {[%emt 0:03:49]} 42. Qd2 {[%emt 0:01:04]} Qf6 {[%emt 0:01:28]} 43. Re1 {[%emt 0:03:57]} Rd8 {[%emt 0:01:31]} 44. Qe2 {[%emt 0:01:56]} g5 {[%emt 0:03:59]} 45. Qh5 {[%emt 0:03:08]} f4 {[%emt 0:04:49]} 46. Rf1 {[%emt 0:13:38]} Rf8 {[%emt 0:02:43]} 47. Qf3 {[%emt 0:00:54]} Qxh6 {[%emt 0:02:52]} 48. Rh1 {[%emt 0:00:03]} Qg7 {[%emt 0:04:03]} 49. Qd3 {[%emt 0:00:51]} f3 {[%emt 0:03:52]} 50. a4 {[%emt 0:00:25]} Rb7 {[%emt 0:02:05]} 51. Rf1 {[%emt 0:02:32]} f2 {[%emt 0:00:20]} 52. Qe2 {[%emt 0:00:08]} Re7 {[%emt 0:00:30]} 53. Qd2 {[%emt 0:00:18]} Re1+ {[%emt 0:00:32]} 54. Rxe1 {[%emt 0:00:14]} f1=Q {[%emt 0:00:03]} 0-1

[Event "4th Batumi Cup 2018"]
[Site "Batumi"]
[Date "2018.07.10"]
[Round "9"]
[White "Jumabayev, Rinat"]
[Black "Sindarov, Javokhir"]
[Result "0-1"]
[ECO "E62"]
[WhiteElo "2594"]
[BlackElo "2474"]
[Annotator "ChessBase"]
[PlyCount "106"]
[EventDate "2018.07.03"]
[EventType "swiss"]
[EventCountry "GEO"]
[SourceTitle "playchess.com"]
[Source "ChessBase"]
[SourceQuality "1"]
[TimeControl "40/5400+30:1800+30"]

1. Nf3 {[%emt 0:00:00]} Nf6 {[%emt 0:01:29]} 2. c4 {[%emt 0:00:00]} g6 {[%emt 0:01:34]} 3. d4 {[%emt 0:00:00]} Bg7 {[%emt 0:01:08]} 4. g3 {[%emt 0:00:00]} O-O {[%emt 0:01:25]} 5. Bg2 {[%emt 0:00:02]} d6 {[%emt 0:00:41]} 6. Nc3 {[%emt 0:00:05]} Nc6 {[%emt 0:00:10]} 7. O-O {[%emt 0:00:18]} Bg4 {[%emt 0:02:06]} 8. d5 {[%emt 0:00:14]} Na5 {[%emt 0:00:08]} 9. b3 {[%emt 0:00:03]} c5 {[%emt 0:00:10]} 10. dxc6 {[%emt 0:00:07]} bxc6 {[%emt 0:00:55]} 11. Bg5 {[%emt 0:02:47]} h6 {[%emt 0:11:16]} 12. Be3 {[%emt 0:00:08]} c5 {[%emt 0:06:20]} 13. Qd2 {[%emt 0:02:42]} Kh7 {[%emt 0:00:18]} 14. h3 {[%emt 0:00:38]} Bd7 {[%emt 0:06:07]} 15. Rfd1 {[%emt 0:00:08]} Nc6 {[%emt 0:01:30]} 16. Rac1 {[%emt 0:00:12]} Rb8 {[%emt 0:07:04]} 17. Nh4 {[%emt 0:02:18]} Nb4 {[%emt 0:08:46]} 18. f4 {[%emt 0:01:11]} Bc6 {[%emt 0:02:30]} 19. Bf2 {[%emt 0:00:57]} Bxg2 {[%emt 0:01:36]} 20. Kxg2 {[%emt 0:00:06]} Qd7 {[%emt 0:16:40]} 21. e4 {[%emt 0:00:21]} Nxe4 {[%emt 0:00:50]} 22. Nxe4 {[%emt 0:00:49]} Qb7 {[%emt 0:00:02]} 23. Qe2 {[%emt 0:08:48]} f5 {[%emt 0:00:07]} 24. a3 {[%emt 0:00:29]} Na6 {[%emt 0:00:04]} 25. Rd5 {[%emt 0:01:16]} Nc7 {[%emt 0:00:14]} 26. Rcd1 {[%emt 0:05:45]} Nxd5 {[%emt 0:00:48]} 27. cxd5 {[%emt 0:00:05]} Qxb3 {[%emt 0:06:09]} 28. Nd2 {[%emt 0:18:04]} Qxd5+ {[%emt 0:00:09]} 29. Nhf3 {[%emt 0:02:06]} Rb7 {[%emt 0:05:32]} 30. Nc4 {[%emt 0:04:51]} Qe4 {[%emt 0:02:12]} 31. Qf1 {[%emt 0:00:10]} Bc3 {[%emt 0:01:25]} 32. Rc1 {[%emt 0:08:42]} Rb3 {[%emt 0:01:55]} 33. Be1 {[%emt 0:00:34]} Bf6 {[%emt 0:00:07]} 34. Ncd2 {[%emt 0:00:26]} Rb2 {[%emt 0:00:12]} 35. Qa6 {[%emt 0:07:38]} Rfb8 {[%emt 0:00:56]} 36. Kf1 {[%emt 0:00:29]} Qd5 {[%emt 0:01:27]} 37. Qc4 {[%emt 0:05:35]} Qxc4+ {[%emt 0:14:28]} 38. Nxc4 {[%emt 0:00:08]} Ra2 {[%emt 0:00:00]} 39. Nfd2 {[%emt 0:00:39]} Bd4 {[%emt 0:00:00]} 40. Nf3 {[%emt 0:00:00]} Bf6 {[%emt 0:00:00]} 41. Nfd2 {[%emt 0:01:47]} Rb5 {[%emt 0:00:00]} 42. Ke2 {[%emt 0:04:39]} d5 {[%emt 0:00:00]} 43. Ne3 {[%emt 0:06:44]} c4 {[%emt 0:00:00]} 44. Nc2 {[%emt 0:01:26]} a6 {[%emt 0:00:00]} 45. Kd1 {[%emt 0:49:03]} Bb2 {[%emt 0:00:00]} 46. Rb1 {[%emt 0:00:00]} Bxa3 {[%emt 0:00:00]} 47. Rxb5 {[%emt 0:00:00]} axb5 {[%emt 0:00:00]} 48. Nb1 {[%emt 0:00:00]} Bb2 {[%emt 0:02:41]} 49. Nb4 {[%emt 0:00:00]} Ra8 {[%emt 0:00:11]} 50. Kc2 {[%emt 0:00:00]} Bg7 {[%emt 0:00:51]} 51. Nxd5 {[%emt 0:00:00]} Ra2+ {[%emt 0:00:04]} 52. Kd1 {[%emt 0:00:00]} Rb2 {[%emt 0:00:07]} 53. Na3 {[%emt 0:00:00]} Rb3 {[%emt 0:00:04]} 0-1